bitfinex/quotes_BTCUSD_20230110
["timestamp","ask_amount","ask_price","bid_price","bid_amount"]
[1673320466541,0.0100842,17195.0,17194.0,0.840852]
[1673320466802,0.0100842,17195.0,17194.0,1.040852]
[1673320468111,0.0100842,17195.0,17194.0,0.872952]
[1673320470228,0.0100842,17195.0,17194.0,2.03766517]
[1673320470486,0.0100842,17195.0,17194.0,1.30755663]
[1673320470988,0.0100842,17195.0,17194.0,2.03761913]
[1673320472234,0.0100842,17195.0,17194.0,1.30755663]
[1673320472704,1e-08,17195.0,17194.0,1.30755663]
[1673320472952,1e-08,17195.0,17194.0,1.04668859]
[1673320473206,1e-08,17195.0,17194.0,1.89916249]
[1673320473709,1e-08,17195.0,17194.0,1.63829445]
[1673320474736,1e-08,17195.0,17194.0,1.46455786]
[1673320477765,1e-08,17195.0,17194.0,1.63829445]
[1673320478277,1e-08,17195.0,17194.0,1.46949445]
[1673320478531,1e-08,17195.0,17194.0,1.29575786]
[1673320479557,1e-08,17195.0,17194.0,1.46949445]
[1673320480805,1e-08,17195.0,17194.0,1.29575786]
[1673320481315,1e-08,17195.0,17194.0,1.09575786]
[1673320481826,1e-08,17195.0,17194.0,0.73360586]
[1673320483362,1e-08,17195.0,17194.0,1.09575786]
[1673320484958,1.21814819,17196.0,17194.0,0.142]
[1673320485234,0.97612298,17196.0,17194.0,0.142]
[1673320485492,0.1681,17195.0,17194.0,0.142]
[1673320486293,0.1681,17195.0,17193.0,0.17373659]
[1673320486555,0.1681,17195.0,17194.0,0.70533878]
[1673320486806,0.1681,17195.0,17194.0,1.06749078]
[1673320487094,0.1681,17195.0,17194.0,0.70533878]
[1673320487599,0.1681,17195.0,17194.0,0.56433878]
[1673320488361,0.1711,17195.0,17194.0,0.56433878]
[1673320495054,0.003,17195.0,17194.0,0.56433878]
[1673320497094,0.34731263,17196.0,17194.0,0.56433878]
[1673320497096,0.34731263,17196.0,17194.0,0.59033878]
[1673320498336,0.34731263,17196.0,17194.0,0.56433878]
[1673320498596,0.34731263,17196.0,17194.0,0.59033878]
[1673320500850,0.34731263,17196.0,17195.0,0.6413494]
[1673320501106,0.17296864,17196.0,17195.0,0.6413494]
[1673320501353,0.17296864,17196.0,17195.0,0.6380704]
[1673320502105,0.17596864,17196.0,17195.0,0.6380704]
[1673320503930,0.17596864,17196.0,17195.0,1.0002224]
[1673320504187,0.17596864,17196.0,17195.0,1.17395899]
[1673320504666,0.17296864,17196.0,17195.0,1.17395899]
[1673320504668,0.17296864,17196.0,17195.0,1.0262224]
[1673320505185,0.17296864,17196.0,17195.0,1.19995899]
[1673320505696,0.17296864,17196.0,17195.0,0.83780699]
[1673320505937,0.17296864,17196.0,17195.0,0.6640704]
[1673320506190,0.17296864,17196.0,17195.0,0.83780699]
[1673320506938,0.17296864,17196.0,17195.0,0.6640704]
[1673320507427,0.17285331,17196.0,17195.0,0.83780699]
[1673320507675,0.17285331,17196.0,17195.0,0.6640704]
[1673320508201,0.00465331,17196.0,17195.0,0.6640704]
[1673320514600,0.1789973,17196.0,17195.0,0.6640704]
[1673320519706,0.00465331,17196.0,17195.0,0.6640704]
[1673320522734,0.1789973,17196.0,17195.0,0.6640704]
[1673320530079,0.4289973,17196.0,17195.0,0.6640704]
[1673320532436,0.69049956,17196.0,17195.0,0.6640704]
[1673320532685,0.4289973,17196.0,17195.0,0.6640704]
[1673320532935,0.69049956,17196.0,17195.0,0.6640704]
[1673320533678,0.4289973,17196.0,17195.0,0.6640704]
[1673320534421,0.69049956,17196.0,17195.0,0.6640704]
[1673320534669,0.4289973,17196.0,17195.0,0.6640704]
[1673320539529,0.69049956,17196.0,17195.0,0.6640704]
[1673320540270,0.4289973,17196.0,17195.0,0.6640704]
[1673320542721,0.69049956,17196.0,17195.0,0.6640704]
[1673320548942,0.86482381,17196.0,17195.0,0.6640704]
[1673320549465,1.55606222,17196.0,17195.0,0.02591862]
[1673320549737,2.81399301,17196.0,17195.0,0.02591862]
[1673320549967,2.39762381,17196.0,17195.0,0.02591862]
[1673320550302,2.04895557,17196.0,17195.0,0.02591862]
[1673320550488,2.46532477,17196.0,17193.0,0.5117189]
[1673320550746,0.17441103,17194.0,17193.0,0.5117189]
[1673320551793,1.22059678,17195.0,17193.0,0.5117189]
[1673320552042,0.80422758,17195.0,17193.0,0.5117189]
[1673320552315,0.80422758,17195.0,17193.0,0.68545549]
[1673320552873,1.05422758,17195.0,17193.0,0.71145549]
[1673320553372,1.57508724,17195.0,17193.0,0.5377189]
[1673320554188,1.57508724,17195.0,17193.0,0.71145549]
[1673320554635,1.57508724,17195.0,17193.0,0.5377189]
[1673320554894,1.57508724,17195.0,17193.0,0.71145549]
[1673320555145,1.40688724,17195.0,17193.0,0.71145549]
[1673320555428,1.14527069,17195.0,17193.0,0.5377189]
[1673320555644,1.40688724,17195.0,17193.0,0.5377189]
[1673320555912,1.14527069,17195.0,17193.0,0.5377189]
[1673320556157,1.40688724,17195.0,17193.0,0.5377189]
[1673320556412,1.14527069,17195.0,17193.0,0.5377189]
[1673320556657,1.40688724,17195.0,17193.0,0.5377189]
[1673320557899,0.59657719,17194.0,17193.0,0.5377189]
[1673320558891,0.59657719,17194.0,17193.0,0.5117189]
[1673320559136,0.77098822,17194.0,17193.0,0.5377189]
[1673320559873,0.59657719,17194.0,17193.0,0.5377189]
[1673320560369,1.05239678,17195.0,17193.0,0.5377189]
[1673320560619,1.14501003,17195.0,17193.0,0.5377189]
[1673320561624,1.14501003,17195.0,17193.0,0.5117189]
[1673320561872,1.14501003,17195.0,17193.0,0.5377189]
[1673320563101,1.56137923,17195.0,17193.0,0.5377189]
[1673320563342,1.14501003,17195.0,17193.0,0.5377189]
[1673320564605,1.56137923,17195.0,17193.0,0.5377189]
[1673320565364,0.70384648,17194.0,17193.0,0.026]
[1673320565637,1.28941568,17194.0,17193.0,0.026]
[1673320565910,1.72544326,17194.0,17193.0,0.026]
[1673320566439,1.89957989,17194.0,17193.0,0.026]
[1673320566755,1.13438863,17194.0,17192.0,0.69515087]
[1673320566957,1.55375783,17194.0,17193.0,0.006]
[1673320567223,1.13738863,17194.0,17193.0,0.006]
[1673320567748,1.13438863,17194.0,17192.0,0.69515087]
[1673320567997,1.55375783,17194.0,17193.0,0.006]
[1673320568260,1.13738863,17194.0,17193.0,0.006]
[1673320568510,0.60795318,17194.0,17193.0,0.006]
[1673320568784,1.02132238,17194.0,17192.0,0.69515087]
[1673320569029,1.02432238,17194.0,17192.0,0.69515087]
[1673320569311,1.02132238,17194.0,17192.0,0.69515087]
[1673320569549,1.67251493,17194.0,17193.0,0.006]
[1673320569805,1.42783116,17194.0,17192.0,0.69515087]
[1673320570071,0.17410056,17193.0,17192.0,0.69515087]
[1673320570341,0.81287042,17193.0,17192.0,0.69515087]
[1673320570631,0.98697098,17193.0,17190.0,1.62206129]
[1673320570889,1.40334018,17193.0,17191.0,0.55761117]
[1673320571149,0.98697098,17193.0,17191.0,0.55761117]
[1673320571427,1.40334018,17193.0,17191.0,0.55761117]
[1673320571674,0.98697098,17193.0,17191.0,0.55761117]
[1673320572189,1.40334018,17193.0,17191.0,0.58361117]
[1673320572438,1.40334018,17193.0,17191.0,0.58353757]
[1673320573991,1.40334018,17193.0,17191.0,0.57857031]
[1673320574251,1.40334018,17193.0,17191.0,0.5749949]
[1673320574527,1.69917877,17192.0,17191.0,0.026]
[1673320574785,2.60395227,17192.0,17191.0,0.026]
[1673320575045,2.42912806,17192.0,17191.0,0.026]
[1673320575464,1.99931151,17192.0,17191.0,0.026]
[1673320575466,1.99931151,17192.0,17190.0,0.66033406]
[1673320575693,1.89015951,17192.0,17191.0,0.01]
[1673320575936,1.88715951,17192.0,17190.0,0.66033406]
[1673320576159,1.89015951,17192.0,17191.0,0.009]
[1673320576604,2.25231151,17192.0,17191.0,0.009]
[1673320577264,2.24931151,17192.0,17190.0,0.66033406]
[1673320577478,1.89015951,17192.0,17190.0,0.66033406]
[1673320577707,0.2,17191.0,17190.0,0.66033406]
[1673320578393,0.2,17191.0,17190.0,0.66633406]
[1673320578604,0.45,17191.0,17190.0,0.66033406]
[1673320579044,0.453,17191.0,17190.0,0.66633406]
[1673320586440,0.453,17191.0,17190.0,0.006]
[1673320586704,0.565152,17191.0,17190.0,0.006]
[1673320587201,0.203,17191.0,17190.0,0.006]
[1673320589501,0.565152,17191.0,17190.0,0.006]
[1673320590024,1.19258219,17191.0,17190.0,0.006]
[1673320590263,1.78294924,17191.0,17187.0,0.71228253]
[1673320590523,0.6163692,17190.0,17187.0,0.71228253]
[1673320591305,0.2,17189.0,17187.0,0.69391573]
[1673320591527,0.86482675,17189.0,17187.0,0.69391573]
[1673320591770,0.86482675,17189.0,17187.0,0.78791573]
[1673320592281,0.86482675,17189.0,17188.0,0.362152]
[1673320592583,0.86482675,17189.0,17187.0,0.69391573]
[1673320592784,0.86482675,17189.0,17187.0,0.78791573]
[1673320593281,0.86482675,17189.0,17188.0,0.362152]
[1673320593535,0.86482675,17189.0,17187.0,0.78791573]
[1673320594052,0.86482675,17189.0,17188.0,0.362152]
[1673320594312,0.66482675,17189.0,17188.0,0.962152]
[1673320594580,0.66482675,17189.0,17188.0,0.6]
[1673320595870,0.66482675,17189.0,17188.0,0.623]
[1673320596858,0.82998558,17190.0,17188.0,0.623]
[1673320597605,0.82998558,17190.0,17188.0,0.6]
[1673320597854,0.82998558,17190.0,17188.0,0.623]
[1673320598105,1.24635478,17190.0,17188.0,0.623]
[1673320598605,0.65272434,17189.0,17188.0,0.623]
[1673320599611,0.65272434,17189.0,17188.0,0.023]
[1673320600934,0.65272434,17189.0,17187.0,0.69391573]
[1673320601185,0.65272434,17189.0,17188.0,0.623]
[1673320601473,0.2,17190.0,17188.0,1.60628808]
[1673320601745,0.2,17190.0,17188.0,1.24413608]
[1673320601990,0.86020934,17191.0,17188.0,2.22113608]
[1673320602244,0.86020934,17191.0,17189.0,0.6227661]
[1673320604398,1.04320719,17191.0,17189.0,0.6227661]
[1673320605683,0.86920934,17191.0,17189.0,0.6227661]
[1673320606205,1.04320719,17191.0,17189.0,0.6227661]
[1673320606452,0.86920934,17191.0,17189.0,0.6227661]
[1673320606719,1.04320719,17191.0,17189.0,0.6227661]
[1673320607247,1.45957639,17191.0,17189.0,0.6227661]
[1673320607522,1.4595028,17191.0,17189.0,0.6227661]
[1673320607777,1.0431336,17191.0,17189.0,0.6227661]
[1673320610394,1.30475015,17191.0,17189.0,0.6227661]
[1673320611900,1.0431336,17191.0,17189.0,0.6227661]
[1673320612443,1.30475015,17191.0,17189.0,0.6227661]
[1673320614004,0.38292426,17191.0,17189.0,0.6227661]
[1673320614260,0.64454081,17191.0,17189.0,0.6227661]
[1673320617332,2.03899217,17191.0,17189.0,0.6227661]
[1673320617587,0.17399785,17190.0,17189.0,0.6227661]
[1673320618837,0.18299785,17190.0,17189.0,0.6227661]
[1673320620598,0.4446144,17190.0,17189.0,0.6227661]
[1673320622884,0.79343646,17190.0,17189.0,0.6227661]
[1673320623110,0.4446144,17190.0,17189.0,0.6227661]
[1673320631271,0.4446144,17190.0,17189.0,0.62267868]
[1673320634448,0.18299785,17190.0,17189.0,0.62267868]
[1673320634940,0.009,17190.0,17189.0,0.62267868]
[1673320637655,0.18299785,17190.0,17189.0,0.62267868]
[1673320637946,0.009,17190.0,17189.0,0.62267868]
[1673320639947,0.009,17190.0,17189.0,0.79641527]
[1673320641461,0.009,17190.0,17189.0,0.62267868]
[1673320643466,0.18299785,17190.0,17189.0,0.62267868]
[1673320645259,0.009,17190.0,17189.0,0.62267868]
[1673320648131,0.009,17190.0,17189.0,0.79641527]
[1673320657834,0.009,17190.0,17189.0,1.10181411]
[1673320658093,1e-08,17190.0,17189.0,2.6268275]
[1673320658351,1e-08,17190.0,17189.0,3.03354806]
[1673320658896,0.17399785,17193.0,17190.0,0.2]
[1673320659152,0.17399785,17193.0,17191.0,0.362152]
[1673320659429,0.37399785,17193.0,17190.0,1.2355476]
[1673320659663,0.37399785,17193.0,17190.0,1.6519168]
[1673320659917,0.6356144,17193.0,17190.0,1.6519168]
[1673320660177,0.37399785,17193.0,17190.0,1.7499168]
[1673320660969,1.13257654,17194.0,17191.0,0.362152]
[1673320661221,1.13257654,17194.0,17191.0,0.23767789]
[1673320661493,1.4813986,17194.0,17191.0,0.23767789]
[1673320661736,1.4813986,17194.0,17192.0,0.6069415]
[1673320661987,1.13257654,17194.0,17192.0,0.6069415]
[1673320662815,0.4356144,17194.0,17192.0,0.84461939]
[1673320663073,0.17399785,17194.0,17192.0,0.6069415]
[1673320663512,1.11818067,17195.0,17192.0,0.6069415]
[1673320663770,0.85656412,17195.0,17192.0,1.43520763]
[1673320664023,0.85656412,17195.0,17193.0,0.56687978]
[1673320664278,0.68256627,17195.0,17193.0,0.56687978]
[1673320664527,0.85656412,17195.0,17193.0,0.56687978]
[1673320665037,0.68256627,17195.0,17193.0,0.56687978]
[1673320665544,0.00875344,17195.0,17193.0,0.56687978]
[1673320666604,0.00875344,17195.0,17193.0,0.59387978]
[1673320667406,0.00875344,17195.0,17193.0,0.56687978]
[1673320669269,0.00875344,17195.0,17193.0,0.59387978]
[1673320670988,0.00875344,17195.0,17193.0,0.76307978]
[1673320671244,0.00875344,17195.0,17193.0,1.17944898]
[1673320672007,0.00875344,17195.0,17194.0,0.55570685]
[1673320673308,0.00875344,17195.0,17194.0,0.65370685]
[1673320674837,0.00875344,17195.0,17194.0,0.85370685]
[1673320675078,0.00875344,17195.0,17194.0,0.65370685]
[1673320675613,0.00875344,17195.0,17194.0,0.85370685]
[1673320675855,0.00875344,17195.0,17194.0,0.65370685]
[1673320676333,0.0086805,17195.0,17194.0,0.65370685]
[1673320676836,0.0086805,17195.0,17194.0,0.85370685]
[1673320677829,0.0086805,17195.0,17194.0,0.65370685]
[1673320678845,0.0086805,17195.0,17194.0,0.55570685]
[1673320679099,0.0086805,17195.0,17194.0,0.65370685]
[1673320680355,0.0086805,17195.0,17194.0,0.85370685]
[1673320681844,0.0086805,17195.0,17194.0,0.65370685]
[1673320684850,0.0086805,17195.0,17194.0,0.85370685]
[1673320685104,0.0086805,17195.0,17194.0,0.65370685]
[1673320691902,0.0086805,17195.0,17194.0,0.85370685]
[1673320692164,0.25465331,17196.0,17195.0,0.72556994]
[1673320692424,0.25465331,17196.0,17195.0,1.31113914]
[1673320692701,0.25465331,17196.0,17195.0,0.89476994]
[1673320693970,0.25465331,17196.0,17195.0,0.99276994]
[1673320694221,0.25465331,17196.0,17195.0,1.40913914]
[1673320694738,0.25465331,17196.0,17195.0,1.77129114]
[1673320695507,0.25465331,17196.0,17195.0,1.40913914]
[1673320695760,0.25465331,17196.0,17195.0,1.77129114]
[1673320697316,0.25465331,17196.0,17195.0,1.96317638]
[1673320699659,0.25465331,17196.0,17195.0,2.13739542]
[1673320702785,0.25465331,17196.0,17195.0,1.52102622]
[1673320703308,0.25465331,17196.0,17195.0,1.34680718]
[1673320703607,0.25465331,17196.0,17195.0,1.52102622]
[1673320703836,0.25465331,17196.0,17195.0,1.93739542]
[1673320704178,0.25465331,17196.0,17195.0,1.21994024]
[1673320704360,0.25465331,17196.0,17195.0,1.88391841]
[1673320704606,0.25465331,17196.0,17195.0,1.21994024]
[1673320704876,0.25465331,17196.0,17195.0,1.79513158]
[1673320706662,0.00465331,17196.0,17195.0,1.79513158]
[1673320708213,0.00465331,17196.0,17195.0,2.16632295]
[1673320708510,0.00465331,17196.0,17195.0,1.90499439]
[1673320708775,0.00465331,17196.0,17195.0,2.87440787]
[1673320709023,0.00465331,17196.0,17195.0,2.18935372]
[1673320709780,0.00465331,17196.0,17195.0,2.72676927]
[1673320710044,0.00465331,17196.0,17195.0,2.01868435]
[1673320710302,0.00465331,17196.0,17195.0,2.72744662]
[1673320711068,0.00465331,17196.0,17195.0,2.01868435]
[1673320711321,0.00465331,17196.0,17195.0,2.7274537]
[1673320712079,0.00465331,17196.0,17195.0,2.01868435]
[1673320712336,0.00465331,17196.0,17195.0,2.72749833]
[1673320713100,0.00465331,17196.0,17195.0,2.01868435]
[1673320714141,0.00465331,17196.0,17195.0,1.60231515]
[1673320714484,0.00465331,17196.0,17195.0,0.80461555]
[1673320716488,0.00465331,17196.0,17195.0,1.22098475]
[1673320716732,0.00465331,17196.0,17195.0,0.97883459]
[1673320717004,0.00465331,17196.0,17195.0,1.34098659]
[1673320717207,0.00465331,17196.0,17195.0,0.97883459]
[1673320717752,0.00465331,17196.0,17195.0,0.63541555]
[1673320730042,0.8942675,17196.0,17195.0,0.63541555]
[1673320730544,1.15588405,17196.0,17195.0,0.63541555]
[1673320731048,1.1562149,17196.0,17195.0,0.098]
[1673320731332,1.90466684,17196.0,17195.0,0.098]
[1673320731608,2.44104086,17196.0,17195.0,0.098]
[1673320731868,1.86194833,17196.0,17195.0,0.098]
[1673320732128,2.26673917,17196.0,17195.0,0.098]
[1673320732874,2.58870984,17196.0,17195.0,0.098]
[1673320733130,1.8618498,17196.0,17195.0,0.098]
[1673320733426,2.26668342,17196.0,17195.0,0.098]
[1673320734397,2.03611599,17196.0,17195.0,0.098]
[1673320734728,1.68729393,17196.0,17195.0,0.098]
[1673320738900,1.06373584,17196.0,17195.0,0.098]
[1673320739145,1.42588784,17196.0,17195.0,0.098]
[1673320739657,1.84225704,17196.0,17195.0,0.098]
[1673320739910,2.10366313,17196.0,17195.0,0.098]
[1673320741716,2.45242351,17196.0,17195.0,0.098]
[1673320741940,2.278219,17196.0,17195.0,0.098]
[1673320742688,2.45240527,17196.0,17195.0,0.098]
[1673320742930,2.10358321,17196.0,17195.0,0.098]
[1673320744224,1.68721401,17196.0,17195.0,0.098]
[1673320744457,1.42580792,17196.0,17195.0,0.098]
[1673320744735,0.88946965,17196.0,17195.0,0.098]
[1673320746039,1.42580792,17196.0,17195.0,0.098]
[1673320746237,1.06365592,17196.0,17195.0,0.098]
[1673320746488,1.42580792,17196.0,17195.0,0.098]
[1673320746735,1.25162165,17196.0,17195.0,0.098]
[1673320747292,0.88946965,17196.0,17195.0,0.098]
[1673320748810,1.25162165,17196.0,17195.0,0.098]
[1673320749341,0.88946965,17196.0,17195.0,0.098]
[1673320749883,1.25162165,17196.0,17195.0,0.098]
[1673320750561,0.88946965,17196.0,17195.0,0.098]
[1673320751821,1.06365592,17196.0,17195.0,0.098]
[1673320752367,0.17385331,17196.0,17195.0,0.74632607]
[1673320758120,0.00465331,17196.0,17195.0,1.26808848]
[1673320758680,0.00465331,17196.0,17195.0,2.60016005]
[1673320758874,0.00456663,17196.0,17195.0,2.77376507]
[1673320759139,0.00456663,17196.0,17195.0,2.60005482]
[1673320759403,0.00456663,17196.0,17195.0,2.293439]
[1673320760387,0.00456663,17196.0,17195.0,2.195439]
[1673320761181,0.00456663,17196.0,17195.0,2.336439]
[1673320761691,0.00456663,17196.0,17195.0,2.51047148]
[1673320761959,0.00456663,17196.0,17195.0,2.336439]
[1673320763520,0.00456663,17196.0,17195.0,2.536439]
[1673320763802,0.00456663,17196.0,17195.0,2.836439]
[1673320764329,0.00456663,17196.0,17195.0,2.74371044]
[1673320764648,0.00456663,17196.0,17195.0,3.1798146]
[1673320765428,0.00456663,17196.0,17195.0,3.00454209]
[1673320765948,0.00456663,17196.0,17195.0,3.44064625]
[1673320766207,0.00456663,17196.0,17195.0,3.00454209]
[1673320766473,0.00456663,17196.0,17195.0,3.1798146]
[1673320766984,0.00456663,17196.0,17195.0,3.00459731]
[1673320767503,0.00456663,17196.0,17195.0,3.78226227]
[1673320767763,0.01151793,17197.0,17196.0,0.28194762]
[1673320768020,0.01151793,17197.0,17196.0,5.14077457]
[1673320768268,0.01151793,17197.0,17196.0,5.14927457]
[1673320769008,0.01151793,17197.0,17196.0,5.14926562]
[1673320769513,0.01151793,17197.0,17196.0,4.97535339]
[1673320769765,0.01151793,17197.0,17196.0,4.67535339]
[1673320770023,0.01151793,17197.0,17196.0,3.96676238]
[1673320770266,0.01151793,17197.0,17196.0,5.07095678]
[1673320771032,0.01151793,17197.0,17196.0,3.80400141]
[1673320771273,0.01151793,17197.0,17196.0,4.36476238]
[1673320771769,0.01151793,17197.0,17196.0,5.07078482]
[1673320772765,0.01151793,17197.0,17196.0,4.77078482]
[1673320773017,0.01151793,17197.0,17196.0,3.80400141]
[1673320774799,0.01151793,17197.0,17196.0,4.10400141]
[1673320775074,0.01151793,17197.0,17196.0,3.80400141]
[1673320776551,0.01151793,17197.0,17196.0,5.07015858]
[1673320777057,0.01151793,17197.0,17196.0,5.41785181]
[1673320777418,0.01151793,17197.0,17196.0,4.41245561]
[1673320777879,0.01151793,17197.0,17196.0,3.80400141]
[1673320781438,0.01151793,17197.0,17196.0,4.10400141]
[1673320784035,0.01151793,17197.0,17196.0,3.80400141]
[1673320784302,0.01151793,17197.0,17196.0,4.10400141]
[1673320787502,0.01151793,17197.0,17196.0,3.93022041]
[1673320788636,0.01151793,17197.0,17196.0,3.63022041]
[1673320788917,0.01151793,17197.0,17196.0,3.93022041]
[1673320789176,0.01151793,17197.0,17196.0,5.4178062]
[1673320789430,0.01151793,17197.0,17196.0,5.24398192]
[1673320789959,0.01151793,17197.0,17196.0,5.24386358]
[1673320792756,0.01151793,17197.0,17196.0,5.41768786]
[1673320794298,0.01151793,17197.0,17196.0,4.94398628]
[1673320795109,0.01151793,17197.0,17196.0,5.11768786]
[1673320795604,0.01151793,17197.0,17196.0,4.94848786]
[1673320795937,0.01151793,17197.0,17196.0,5.24848786]
[1673320796635,0.01151793,17197.0,17196.0,4.90083931]
[1673320797205,0.01151793,17197.0,17196.0,4.46627862]
[1673320797404,0.01151793,17197.0,17196.0,4.90140908]
[1673320799154,0.01151793,17197.0,17196.0,4.46627862]
[1673320799399,0.01151793,17198.0,17197.0,0.29748249]
[1673320799655,0.01151793,17198.0,17197.0,2.71626928]
[1673320800679,0.01151793,17198.0,17197.0,2.79125642]
[1673320801433,0.01151793,17198.0,17197.0,2.76425642]
[1673320801691,0.01151793,17198.0,17197.0,2.9042784]
[1673320801939,0.00824493,17198.0,17197.0,2.7642784]
[1673320802203,0.00824493,17198.0,17197.0,2.9042784]
[1673320802471,0.00824493,17198.0,17197.0,2.55626928]
[1673320804498,0.00824493,17198.0,17197.0,2.90431199]
[1673320804754,0.00824493,17198.0,17197.0,2.81807199]
[1673320806287,0.00824493,17198.0,17197.0,3.36870448]
[1673320807323,0.00824493,17198.0,17197.0,2.81807199]
[1673320808110,0.00824493,17198.0,17197.0,3.5081172]
[1673320808632,0.00824493,17198.0,17197.0,2.81807199]
[1673320809632,0.00824493,17198.0,17197.0,2.47002928]
[1673320810881,0.00824493,17198.0,17197.0,2.77002928]
[1673320811220,0.00824493,17198.0,17197.0,2.47002928]
[1673320811391,0.00824493,17198.0,17197.0,2.61820788]
[1673320812371,0.00824493,17198.0,17197.0,2.81820788]
[1673320814400,0.00824493,17198.0,17197.0,2.42117454]
[1673320814637,0.00824493,17198.0,17197.0,2.03341454]
[1673320815350,0.00824493,17198.0,17197.0,2.39556654]
[1673320816379,0.00824493,17198.0,17197.0,2.03341454]
[1673320817619,0.00824493,17198.0,17197.0,1.85932108]
[1673320818315,0.00824493,17198.0,17197.0,0.89277299]
[1673320820057,0.00824493,17198.0,17197.0,0.7186713]
[1673320820307,0.18224735,17198.0,17197.0,0.7186713]
[1673320820830,0.26848735,17198.0,17197.0,0.7186713]
[1673320821078,0.09448493,17198.0,17197.0,0.7186713]
[1673320821851,0.26848735,17198.0,17197.0,0.7186713]
[1673320822313,0.00824493,17198.0,17197.0,0.7186713]
[1673320822591,0.00924493,17198.0,17197.0,0.7186713]
[1673320822828,0.00824493,17198.0,17197.0,0.5786713]
[1673320823576,0.00824493,17198.0,17197.0,0.6106713]
[1673320824326,0.00824493,17198.0,17197.0,0.78477299]
[1673320826501,0.00824493,17198.0,17197.0,0.6106713]
[1673320827693,0.00824493,17198.0,17197.0,0.78477299]
[1673320829167,0.00824493,17198.0,17197.0,0.6106713]
[1673320830505,0.00824493,17198.0,17197.0,0.78477299]
[1673320830750,0.00824493,17198.0,17197.0,0.6106713]
[1673320833065,0.00824493,17198.0,17197.0,0.78477299]
[1673320837116,0.00824493,17198.0,17197.0,0.6106713]
[1673320842235,0.00824493,17198.0,17197.0,0.98477299]
[1673320842724,0.00824493,17198.0,17197.0,0.78477299]
[1673320850319,0.00824493,17198.0,17197.0,0.6106713]
[1673320851910,0.00824493,17198.0,17197.0,0.78477299]
[1673320853252,0.92022224,17198.0,17195.0,0.70820652]
[1673320853538,0.92022224,17198.0,17196.0,0.56836648]
[1673320854312,0.56952333,17197.0,17196.0,0.56836648]
[1673320854563,0.56952333,17197.0,17195.0,1.14029035]
[1673320854865,0.56952333,17197.0,17195.0,0.84820652]
[1673320855078,0.56952333,17197.0,17195.0,0.70820652]
[1673320855377,0.57152333,17197.0,17196.0,0.088]
[1673320855638,0.56952333,17197.0,17195.0,1.14020204]
[1673320855894,0.56952333,17197.0,17195.0,0.70820652]
[1673320856417,0.56952333,17197.0,17196.0,0.362152]
[1673320856700,0.56952333,17197.0,17195.0,1.14020228]
[1673320856966,0.56952333,17197.0,17195.0,0.79620652]
[1673320856967,0.57152333,17197.0,17195.0,0.79620652]
[1673320857217,0.56952333,17197.0,17196.0,0.362152]
[1673320857656,0.57152333,17197.0,17196.0,0.088]
[1673320857920,0.57252333,17197.0,17195.0,0.84820652]
[1673320858183,0.57252333,17197.0,17195.0,0.70820652]
[1673320858433,0.56952333,17197.0,17195.0,0.70820652]
[1673320858707,0.56952333,17197.0,17196.0,0.362152]
[1673320858970,0.57152333,17197.0,17196.0,0.088]
[1673320860064,0.56952333,17197.0,17195.0,1.14020228]
[1673320860307,0.57252333,17197.0,17195.0,0.84820652]
[1673320860564,0.56952333,17197.0,17195.0,0.70820652]
[1673320860799,0.57152333,17197.0,17196.0,0.450152]
[1673320861042,0.56952333,17197.0,17195.0,1.14015566]
[1673320861301,0.57252333,17197.0,17195.0,1.19629553]
[1673320861568,0.56952333,17197.0,17196.0,0.362152]
[1673320861815,0.56952333,17197.0,17195.0,1.4882886]
[1673320862052,0.57152333,17197.0,17196.0,0.088]
[1673320863348,0.57152333,17197.0,17196.0,0.2620322]
[1673320863588,0.56952333,17197.0,17196.0,0.1740322]
[1673320863837,0.57252333,17197.0,17196.0,0.1740322]
[1673320864088,0.56952333,17197.0,17196.0,0.1740322]
[1673320864416,0.57152333,17197.0,17196.0,0.2620322]
[1673320867190,0.57152333,17197.0,17196.0,0.088]
[1673320876207,0.002,17197.0,17196.0,0.2620322]
[1673320876518,0.002,17197.0,17196.0,0.62826321]
[1673320878019,0.002,17197.0,17196.0,1.45750827]
[1673320878262,0.002,17197.0,17196.0,2.25176535]
[1673320878787,0.002,17197.0,17196.0,2.42582216]
[1673320880829,0.002,17197.0,17196.0,1.81957935]
[1673320881076,0.002,17197.0,17196.0,1.45740435]
[1673320883870,0.00189287,17197.0,17196.0,1.45740435]
[1673320887556,0.00189287,17197.0,17196.0,0.8892077]
[1673320887803,0.00189287,17197.0,17196.0,0.62815929]
[1673320891941,0.00189287,17197.0,17196.0,0.62805856]
[1673320892221,0.00189287,17197.0,17196.0,0.88910697]
[1673320894268,0.00189287,17197.0,17196.0,1.46299971]
[1673320894522,0.00189287,17197.0,17196.0,0.88910697]
[1673320895999,0.00189287,17197.0,17196.0,0.62805856]
[1673320897698,0.00189287,17197.0,17196.0,0.88910697]
[1673320898578,0.00189287,17197.0,17196.0,1.46295449]
[1673320901180,0.00189287,17197.0,17196.0,1.63711522]
[1673320901435,0.00189287,17197.0,17196.0,1.46299728]
[1673320901692,0.00189287,17197.0,17196.0,1.63711522]
[1673320902182,0.00189287,17197.0,17196.0,1.46299563]
[1673320902658,0.00189287,17197.0,17196.0,1.81108464]
[1673320902910,0.00189287,17197.0,17196.0,1.63711522]
[1673320903160,0.00189287,17197.0,17196.0,1.81108151]
[1673320903405,0.00189287,17197.0,17196.0,1.63711522]
[1673320903911,0.00189287,17197.0,17196.0,1.99929022]
[1673320904415,0.00189287,17197.0,17196.0,1.63711522]
[1673320905727,0.00189287,17197.0,17196.0,1.99929022]
[1673320906471,0.00189287,17197.0,17196.0,1.63711522]
[1673320910454,0.00189287,17197.0,17196.0,2.07223272]
[1673320910737,0.00189287,17197.0,17196.0,1.81118431]
[1673320912338,0.00189287,17197.0,17196.0,1.4449533]
[1673320912592,0.00189287,17197.0,17196.0,1.96836681]
[1673320913115,0.00177622,17197.0,17196.0,1.96836681]
[1673320920051,0.00177622,17197.0,17196.0,2.33054181]
[1673320920296,0.00177622,17197.0,17196.0,1.96836681]
[1673320920541,0.00177622,17197.0,17196.0,1.79417575]
[1673320921570,0.00177622,17197.0,17196.0,1.96813241]
[1673320922317,0.00177622,17197.0,17196.0,1.79417575]
[1673320923834,0.00177622,17197.0,17196.0,2.22929325]
[1673320924092,0.00177622,17197.0,17196.0,2.33054181]
[1673320926172,0.00177622,17197.0,17196.0,1.96836681]
[1673320926403,0.00177622,17197.0,17196.0,1.79408764]
[1673320928415,0.00177622,17197.0,17196.0,2.15626264]
[1673320929464,0.00177622,17197.0,17196.0,2.59138014]
[1673320929720,0.00177622,17197.0,17196.0,2.33054181]
[1673320935269,0.00165741,17197.0,17196.0,2.33054181]
[1673320935526,0.00165741,17197.0,17196.0,1.8071283]
[1673320935742,0.00165741,17197.0,17196.0,2.48023565]